bitfinex-derivatives/quotes_BNBF0:USTF0_20250303
["timestamp","ask_amount","ask_price","bid_price","bid_amount"]
[1741027419344,1.79332912,583.03,581.54,0.29133924]
[1741027419643,0.34302963,583.04,581.49,0.343944]
[1741027419644,0.34302963,583.04,581.55,0.29133924]
[1741027419847,0.34302963,583.04,581.56,0.29133924]
[1741027420047,0.34302963,583.04,581.57,0.29133924]
[1741027420248,0.34302963,583.04,581.58,0.29133924]
[1741027420443,0.34302963,583.04,581.59,0.29133924]
[1741027420643,0.34302963,583.04,581.6,0.29133924]
[1741027420843,0.34302963,583.04,581.61,0.29133924]
[1741027421050,0.34302963,583.04,581.62,0.29133924]
[1741027421349,0.34302963,583.04,581.63,0.29133924]
[1741027421551,0.34302963,583.04,582.02,1.26226161]
[1741027421743,0.34302963,583.04,582.03,0.29133924]
[1741027421945,0.34302963,583.04,582.04,0.29133924]
[1741027422148,0.34302963,583.04,582.05,0.29133924]
[1741027422347,0.34302963,583.04,582.06,0.29133924]
[1741027422548,0.34302963,583.04,582.07,0.29133924]
[1741027422744,0.34302963,583.04,582.02,1.26226161]
[1741027422745,0.34302963,583.04,582.08,0.29133924]
[1741027422949,0.34302963,583.04,582.09,0.29133924]
[1741027423145,0.34302963,583.04,582.1,0.29121383]
[1741027423355,0.34302963,583.04,582.11,0.29121383]
[1741027423557,0.34302963,583.04,582.12,0.29121383]
[1741027423856,0.34302963,583.04,582.13,0.29121383]
[1741027424062,0.34302963,583.04,582.14,0.29121383]
[1741027424258,0.34302963,583.04,582.15,0.29121383]
[1741027424454,0.34302963,583.04,582.03,0.29121383]
[1741027424658,0.34302963,583.04,582.04,0.2911481]
[1741027424855,0.34302963,583.04,582.02,1.26226161]
[1741027424856,0.34302963,583.04,582.28,1.26226161]
[1741027425063,0.34302963,583.04,582.29,0.2911481]
[1741027425962,0.34302963,583.04,582.3,0.2911481]
[1741027426356,0.34302963,583.04,582.31,0.2911481]
[1741027426555,0.34302963,583.04,582.32,0.2911481]
[1741027426754,0.34302963,583.04,582.33,0.2911481]
[1741027427061,0.34302963,583.04,582.34,0.2911481]
[1741027427256,0.34302963,583.04,582.28,1.26226161]
[1741027427257,0.34302963,583.04,582.35,0.2911481]
[1741027427460,0.34302963,583.04,582.36,0.2911481]
[1741027427660,0.34302963,583.04,582.84,1.26226161]
[1741027427864,0.34302963,583.04,582.85,0.2911481]
[1741027428563,1.236,583.13,582.85,0.2911481]
[1741027429363,1.236,583.13,582.84,1.26226161]
[1741027429558,1.236,583.13,582.85,0.29088671]
[1741027430760,1.236,583.13,582.74,1.26226161]
[1741027430959,1.236,583.13,582.75,0.29101289]
[1741027433670,1.236,583.13,582.71,1.26226161]
[1741027433863,1.236,583.13,582.76,0.29093253]
[1741027434163,1.236,583.13,582.77,0.29098595]
[1741027434469,1.236,583.13,582.78,0.29098595]
[1741027434669,1.236,583.13,582.79,0.29098595]
[1741027434864,1.236,583.13,582.8,0.29098595]
[1741027435070,1.236,583.13,582.71,1.26226161]
[1741027435368,1.236,583.13,582.72,0.2910197]
[1741027435763,1.236,583.13,582.71,1.26226161]
[1741027435969,1.236,583.13,582.34,1.26226161]
[1741027436170,1.236,583.13,582.35,0.29100615]
[1741027436969,1.79096796,583.68,582.35,0.29100615]
[1741027438265,1.60738182,584.01,582.35,0.29100615]
[1741027438473,1.79156728,583.51,582.35,0.29100615]
[1741027439075,1.79156728,583.51,582.07,0.29100615]
[1741027439266,1.79156728,583.51,582.06,1.26226161]
[1741027439267,1.79156728,583.51,582.08,0.29100615]
[1741027439466,1.79156728,583.51,582.07,0.29100615]
[1741027439666,1.79156728,583.51,582.08,0.29100615]
[1741027439866,1.79156728,583.51,582.09,0.29100615]
[1741027440072,1.316,583.5,582.1,0.29100615]
[1741027440267,1.316,583.5,582.11,0.29100615]
[1741027440467,1.316,583.5,582.07,0.29100615]
[1741027440668,1.316,583.5,582.08,0.29100615]
[1741027440867,1.316,583.5,582.09,0.29100615]
[1741027441069,1.316,583.5,582.1,0.29100615]
[1741027441266,1.316,583.5,582.11,0.29100615]
[1741027441472,1.316,583.5,582.12,0.29100615]
[1741027441868,1.316,583.5,582.13,0.29100615]
[1741027442072,1.316,583.5,582.14,0.29100615]
[1741027442368,1.316,583.5,582.15,0.29100615]
[1741027442571,1.316,583.5,582.06,1.26226161]
[1741027442572,1.316,583.5,582.16,0.29100615]
[1741027442769,1.316,583.5,582.17,0.29100615]
[1741027443069,1.316,583.5,582.18,0.29100615]
[1741027443270,1.316,583.5,582.2,0.34352456]
[1741027443475,1.316,583.5,582.21,0.29100615]
[1741027443671,1.316,583.5,582.22,0.29100615]
[1741027443868,1.316,583.5,582.23,0.29100615]
[1741027444075,1.316,583.5,582.2,0.34352456]
[1741027444076,1.316,583.5,582.24,0.29100615]
[1741027444268,1.316,583.5,582.25,0.29100615]
[1741027444471,1.316,583.5,582.2,0.34352456]
[1741027444472,1.316,583.5,582.7,1.26226161]
[1741027444772,1.316,583.5,582.71,0.29093566]
[1741027444972,0.34276508,583.49,582.71,0.29093566]
[1741027445978,0.34276508,583.49,582.7,1.26226161]
[1741027446176,0.34276508,583.49,582.71,0.29098843]
[1741027446770,0.34276508,583.49,582.72,0.29098843]
[1741027447277,0.34276508,583.49,582.35,0.29098843]
[1741027447471,0.34276508,583.49,582.36,0.29098843]
[1741027447671,0.34276508,583.49,582.37,0.29098843]
[1741027447875,0.34276508,583.49,582.38,0.29098843]
[1741027448177,0.34276508,583.49,582.39,0.29098843]
[1741027448379,0.34276508,583.49,582.4,0.29098843]
[1741027448672,0.34276508,583.49,582.34,1.26226161]
[1741027448673,0.34276508,583.49,582.41,0.29098843]
[1741027448878,0.34276508,583.49,582.67,1.26226161]
[1741027449177,0.34276508,583.49,582.68,0.29098843]
[1741027449578,1.316,583.5,582.68,0.29098843]
[1741027449872,1.316,583.5,582.67,1.26226161]
[1741027450279,1.79124452,583.49,582.67,1.26226161]
[1741027450674,0.34277683,583.47,582.67,1.26226161]
[1741027451176,0.34277683,583.47,582.36,1.26226161]
[1741027451373,0.34277683,583.47,582.37,0.29116705]
[1741027452983,0.31539386,583.46,582.37,0.29116705]
[1741027453479,1.79177483,583.45,582.37,0.29116705]
[1741027453675,0.31539386,583.44,582.36,1.26226161]
[1741027454377,0.31539386,583.44,582.41,1.26226161]
[1741027454778,8.70251581,583.44,582.41,1.26226161]
[1741027454977,8.70251581,583.43,582.41,1.26226161]
[1741027455181,8.70251581,583.42,582.41,1.26226161]
[1741027455381,8.70251581,583.41,582.41,1.26226161]
[1741027455580,8.70263773,583.4,582.41,1.26226161]
[1741027455781,8.70263773,583.39,582.41,1.26226161]
[1741027455981,8.70263773,583.38,582.41,1.26226161]
[1741027456182,8.70263773,583.37,582.41,1.26226161]
[1741027456379,8.70263773,583.36,582.41,1.26226161]
[1741027456575,8.18735863,583.35,582.41,1.26226161]
[1741027456882,7.18521357,583.34,582.41,1.26226161]
[1741027457083,7.18521357,583.33,582.41,1.26226161]
[1741027457282,1.04698485,583.32,582.41,1.26226161]
[1741027457583,1.04698485,583.32,581.75,2.57711746]
[1741027457584,1.04698485,583.32,581.95,1.26226161]
[1741027457777,0.31552756,583.31,581.96,0.29140178]
[1741027457977,2.03274481,583.32,581.96,0.29140178]
[1741027458178,0.31552756,583.31,581.96,0.29140178]
[1741027458484,11.9074398,583.32,581.95,1.26226161]
[1741027458785,0.31557503,583.3,581.96,0.29144908]
[1741027458984,0.31557503,583.29,581.96,0.29144908]
[1741027459185,1.9281497,583.29,581.96,0.29144908]
[1741027459484,0.31557503,583.28,581.96,0.29144908]
[1741027459682,1.36255988,583.28,581.96,0.29144908]
[1741027459883,0.31557503,583.27,581.96,0.29144908]
[1741027460078,6.88049831,583.27,581.96,0.29144908]
[1741027460382,10.31497324,583.26,581.96,0.29144908]
[1741027460579,1.61257467,583.24,581.74,0.29144908]
[1741027460777,1.9281497,583.23,581.75,0.29144908]
[1741027460984,1.61257467,583.21,581.74,0.29144908]
[1741027461182,0.3429414,583.19,581.75,0.29144908]
[1741027461483,0.3429414,583.19,581.73,1.26226161]
[1741027461484,0.31557503,583.18,581.76,0.29144908]
[1741027461679,0.3156479,583.17,581.77,0.29152123]
[1741027461880,0.3156479,583.16,581.78,0.29152123]
[1741027462082,1.61257467,583.16,581.74,0.29152123]
[1741027462281,2.10888461,583.15,581.75,0.29152123]
[1741027462482,0.3156479,583.14,581.74,0.29152123]
[1741027462783,0.3156479,583.14,581.75,0.29152123]
[1741027462984,1.61257467,583.13,581.76,0.29152123]
[1741027463181,1.61257467,583.07,581.74,0.29152123]
[1741027463379,1.61257467,583.07,581.75,0.29152123]
[1741027463380,0.3156479,583.06,581.75,0.29152123]
[1741027463578,1.61257467,583.0,581.74,0.29152123]
[1741027463778,1.92822257,582.99,581.75,0.29152123]
[1741027463980,0.3156479,582.98,581.59,0.29152123]
[1741027464184,0.3156479,582.97,581.59,0.29152123]
[1741027464385,0.3156479,582.96,581.59,0.29152123]
[1741027464685,0.3156479,582.95,581.59,0.29152123]
[1741027464882,5.8245343,583.0,581.59,0.29152123]
[1741027465080,4.03586813,583.02,581.58,1.26226161]
[1741027465081,0.31562886,582.99,581.6,0.29150165]
[1741027465281,1.336,582.99,581.61,0.29150165]
[1741027465483,1.336,582.99,581.62,0.29150165]
[1741027465684,1.336,582.99,581.63,0.29150165]
[1741027465883,1.336,582.99,581.64,0.29150165]
[1741027466080,1.336,582.99,581.65,0.29150165]
[1741027466280,1.336,582.99,581.66,0.29150165]
[1741027466481,1.336,582.99,581.25,1.26226161]
[1741027466686,1.336,582.99,581.26,0.29145661]
[1741027466881,1.336,582.99,581.27,0.63553079]
[1741027467181,1.336,582.99,581.28,0.29145661]
[1741027468491,1.79396085,582.98,581.28,0.29145661]
[1741027468790,2.83839751,582.98,581.28,0.29145661]
[1741027468982,4.50881197,582.98,581.28,0.29145661]
[1741027469183,5.51037594,582.97,581.28,0.29145661]
[1741027469484,5.51037594,582.96,581.28,0.29145661]
[1741027469689,1.71750236,582.95,581.28,0.29145661]
[1741027469885,3.34252888,582.96,581.28,0.29145661]
[1741027470084,1.71750236,582.95,581.28,0.29145661]
[1741027470589,1.71750236,582.95,581.29,0.34406234]
[1741027470785,1.04302593,582.96,581.3,0.29145661]
[1741027470982,0.3157222,582.95,581.31,0.29145661]
[1741027471187,7.17819466,582.96,581.29,0.34406234]
[1741027471384,1.79377591,582.94,581.3,0.29160695]
[1741027472185,2.83680184,582.94,581.3,0.29160695]
[1741027472388,8.97115067,582.94,581.3,0.29160695]
[1741027472592,7.86482102,582.93,581.3,0.29160695]
[1741027472789,2.71091514,582.92,581.3,0.29160695]
[1741027472989,0.34311202,582.9,581.3,0.29160695]
[1741027473390,2.06061438,582.9,581.3,0.29160695]
[1741027473590,0.31570573,582.89,581.31,0.29160695]
[1741027473794,0.31570573,582.89,581.29,0.34406234]
[1741027473795,0.31570573,582.89,581.32,0.29160695]
[1741027474093,0.31570573,582.89,581.33,0.29160695]
[1741027474294,0.31570573,582.89,581.3,0.29160695]
[1741027474493,0.34311202,582.9,581.31,0.29158534]
[1741027474698,0.34312968,582.87,581.32,0.29158534]
[1741027474895,0.34312968,582.87,581.33,0.29158534]
[1741027475096,0.34312968,582.87,581.3,0.29158534]
[1741027475296,0.31575251,582.86,581.31,0.29158534]
[1741027475498,0.31575251,582.86,581.3,0.29158534]
[1741027475698,0.31575251,582.86,581.31,0.29158534]
[1741027475892,0.31575251,582.86,581.32,0.29158534]
[1741027476094,0.34312968,582.87,581.3,0.29158534]
[1741027476294,0.34312968,582.87,581.31,0.29158534]
[1741027476497,0.34312968,582.87,581.3,0.29158534]
[1741027476691,0.34312968,582.87,581.31,0.29158534]
[1741027476894,0.34312968,582.87,581.3,0.29158534]
[1741027477100,0.34312968,582.87,581.31,0.29158534]
[1741027477303,0.34312968,582.87,581.3,0.29158534]
[1741027478699,0.31578985,582.86,581.3,0.29158534]
[1741027479600,0.31578985,582.86,581.31,0.29158534]
[1741027479900,0.34312968,582.87,581.32,0.29158534]
[1741027480099,0.34312968,582.87,581.3,0.29158534]
[1741027480499,1.79383755,582.86,581.3,0.29158534]
[1741027482002,0.31573535,582.85,581.31,0.29158534]
[1741027482204,0.31573535,582.85,581.32,0.29158534]
[1741027482498,0.34315323,582.83,581.33,0.29158534]
[1741027482705,0.31573535,582.82,581.3,0.29158534]
[1741027483297,1.416,582.82,581.3,0.29158534]
[1741027483503,1.79417666,582.81,581.3,0.29158534]
[1741027483700,4.55144099,582.81,581.3,0.29158534]
[1741027483901,5.82249537,582.8,581.42,1.26226161]
[1741027484098,1.79417666,582.81,581.42,1.26226161]
[1741027484099,2.75662186,582.79,581.43,0.29168832]
[1741027484303,0.3158426,582.78,581.43,0.29168832]
[1741027484605,0.3158426,582.77,581.43,0.29168832]
[1741027484802,1.35371773,582.78,581.43,0.29168832]
[1741027485006,0.3158426,582.77,581.43,0.29168832]
[1741027485203,0.3158426,582.77,581.42,1.26226161]
[1741027485408,0.3158426,582.77,581.43,0.29177568]
[1741027485409,1.35371773,582.77,581.43,0.29177568]
[1741027485605,7.1663081,582.77,581.42,1.26226161]
[1741027485804,3.01329618,582.76,581.42,1.26226161]
[1741027486007,0.31590113,582.75,581.42,1.26226161]
[1741027486503,7.48220923,582.75,581.42,1.26226161]
[1741027486804,7.48220923,582.74,581.2,1.26226161]
[1741027487015,5.82268931,582.73,581.21,0.2917745]
[1741027487309,5.82269114,582.72,581.22,0.29177294]
[1741027487509,5.82269114,582.71,581.23,0.29177294]
[1741027487711,3.07252482,582.7,581.24,0.29177294]
[1741027487911,3.07252482,582.7,581.2,1.26226161]
[1741027487912,3.07252482,582.69,581.25,0.29177294]
[1741027488211,4.35407903,582.68,581.2,1.26226161]
[1741027488406,7.48063586,582.67,581.21,0.29186012]
[1741027488611,8.16852048,582.66,581.2,1.26226161]
[1741027488804,8.68446016,582.65,581.2,1.26226161]
[1741027489007,1.28155421,582.68,581.2,1.26226161]
[1741027489008,0.34327102,582.63,581.2,1.26226161]
[1741027489207,0.31590296,582.62,581.37,1.26226161]
[1741027489409,9.27555284,582.62,581.37,1.26226161]
[1741027489608,8.6844653,582.61,581.37,1.26226161]
[1741027489808,8.16852048,582.6,581.37,1.26226161]
[1741027490012,8.68710424,582.59,581.37,1.26226161]
[1741027490204,5.80917092,582.62,581.37,1.26226161]
[1741027490205,8.17116078,582.58,581.37,1.26226161]
[1741027490405,7.85525782,582.57,581.37,1.26226161]
[1741027490605,8.17130008,582.56,581.37,1.26226161]
[1741027490805,8.68729451,582.55,581.37,1.26226161]
[1741027491113,8.17130008,582.54,581.37,1.26226161]
[1741027491411,0.34333585,582.52,581.37,1.26226161]
[1741027491612,0.31604226,582.51,581.37,1.26226161]
[1741027491811,7.48331193,582.51,581.08,1.26226161]
[1741027492014,7.16732101,582.5,581.08,1.26226161]
[1741027492309,0.34335942,582.48,581.09,0.29191836]
[1741027492606,0.31605006,582.47,581.09,0.29191836]
[1741027492808,3.07391532,582.47,581.09,0.29191836]
[1741027493005,3.07391532,582.46,581.09,0.29191836]
[1741027493209,3.07391532,582.45,581.09,0.29191836]
[1741027493409,3.07391532,582.44,581.09,0.29191836]
[1741027493609,3.07391532,582.43,581.09,0.29191836]
[1741027493811,3.07391532,582.42,581.09,0.29191836]
[1741027494012,3.07391532,582.41,581.09,0.29191836]
[1741027494212,3.0711491,582.4,581.09,0.29191836]
[1741027494413,1.71999013,582.39,581.09,0.29191836]
[1741027494610,0.31605006,582.38,581.09,0.29191836]
[1741027494815,0.31605006,582.4,580.97,0.29191836]
[1741027495113,0.31605006,582.39,580.98,0.29191836]
[1741027495511,0.31605006,582.38,580.99,0.29191836]
[1741027495712,0.31605006,582.38,580.97,0.29191836]
[1741027495913,0.34343018,582.36,580.97,0.29191836]
[1741027496212,0.31605006,582.35,580.97,0.29191836]
[1741027497013,0.31605006,582.35,581.07,1.26226161]
[1741027497219,0.31605006,582.35,581.08,0.29191836]
[1741027497413,0.34344787,582.33,581.08,0.29191836]
[1741027497613,0.31605006,582.32,581.08,0.29191836]
[1741027498419,1.79555754,582.31,581.07,1.26226161]
[1741027498615,0.31605006,582.3,581.07,1.26226161]
[1741027499414,1.79555754,582.31,581.07,1.26226161]
[1741027500621,1.79555754,582.31,580.95,1.26226161]
[1741027500820,0.3161233,582.3,580.95,1.26226161]
[1741027501221,1.79555754,582.31,580.95,1.26226161]
[1741027501420,0.31615221,582.3,580.96,0.2920195]
[1741027501614,1.89815221,582.3,580.95,1.26226161]
[1741027501819,0.31615221,582.29,580.95,1.26226161]
[1741027502022,7.47886663,582.29,580.95,1.26226161]
[1741027502322,3.00521283,582.28,580.95,1.26226161]
[1741027502618,0.31615221,582.27,580.95,1.26226161]
[1741027503426,2.0365515,582.27,580.95,1.26226161]
[1741027503625,1.59601443,582.2,580.95,1.26226161]
[1741027503824,1.59601443,582.14,580.95,1.26226161]
[1741027504027,1.59601443,582.11,580.95,1.26226161]
[1741027504226,0.31615221,582.1,580.44,1.26226161]
[1741027504526,0.31627279,582.09,580.44,1.26226161]
[1741027504826,5.50757287,582.2,580.45,0.29213819]
[1741027505029,3.07112119,582.19,580.45,0.29213819]
[1741027505223,1.436,582.08,580.45,0.29213819]
[1741027506027,1.436,582.08,580.44,1.26226161]
[1741027506223,1.436,582.08,580.45,0.29190409]
[1741027506420,1.436,582.08,580.46,0.29190409]
[1741027506721,1.436,582.08,580.48,1.26226161]
[1741027506925,1.436,582.08,580.49,0.29190409]
[1741027507228,1.436,582.08,580.51,0.34452464]
[1741027507425,1.436,582.08,580.52,0.29190409]
[1741027507629,1.436,582.08,580.53,0.29190409]
[1741027507829,1.436,582.08,580.54,0.29190409]
[1741027508021,1.436,582.08,580.55,0.29190409]
[1741027508322,1.436,582.08,580.56,0.29190409]
[1741027508530,1.436,582.08,580.57,0.29190409]
[1741027508726,1.436,582.08,580.52,0.29190409]
[1741027508923,1.436,582.08,580.53,0.29190409]
[1741027509130,1.436,582.08,580.51,0.34452464]
[1741027509324,1.436,582.08,580.52,0.29180105]
[1741027509527,1.436,582.08,580.53,0.29180105]
[1741027509926,1.436,582.08,581.08,1.26226161]
[1741027510122,1.436,582.08,581.09,0.29180105]
[1741027510323,1.436,582.08,581.1,0.29180105]
[1741027510525,1.436,582.08,581.11,0.29180105]
[1741027510727,1.436,582.08,581.09,0.29180105]
[1741027511030,1.436,582.08,581.1,0.29180105]
[1741027511227,1.436,582.08,581.09,0.29180105]
[1741027511426,1.436,582.08,581.1,0.29180105]
[1741027511628,1.436,582.08,581.11,0.29180105]
[1741027511827,1.436,582.08,581.12,0.29180105]
[1741027512032,1.436,582.08,581.13,0.29180105]
[1741027512226,1.436,582.08,581.14,0.29180105]
[1741027512431,1.436,582.08,581.09,0.29180105]
[1741027512640,1.436,582.08,581.12,1.26226161]
[1741027513126,1.436,582.08,581.13,0.29190092]
[1741027514331,1.436,582.08,581.14,0.29173789]
[1741027514826,1.436,582.08,581.15,0.29173789]
[1741027515029,1.436,582.08,581.18,1.26226161]
[1741027515230,1.436,582.08,581.19,0.29173789]
[1741027515631,1.436,582.08,581.18,1.26226161]
[1741027515831,1.436,582.08,581.19,0.29179409]
[1741027516232,1.436,582.08,581.2,0.29179409]
[1741027516428,1.436,582.08,581.21,0.29179409]
[1741027516631,1.436,582.08,581.22,0.29179409]
[1741027516933,1.436,582.08,581.23,0.29179409]
[1741027517132,1.436,582.08,581.24,0.29179409]
[1741027517333,1.436,582.08,581.19,0.29179409]
[1741027517528,1.436,582.08,581.2,0.29179409]
[1741027517732,1.436,582.08,581.19,0.29179409]
[1741027517933,1.436,582.08,581.61,1.26226161]
[1741027519034,1.436,582.08,581.62,0.29163855]
[1741027520736,1.436,582.08,581.61,1.26226161]
[1741027520937,1.436,582.08,581.62,0.29159478]
[1741027521138,1.436,582.08,581.63,0.29159478]
[1741027521332,1.436,582.08,581.64,0.29159478]
[1741027521533,1.436,582.08,581.65,0.29159478]
[1741027521736,1.436,582.08,581.66,0.29159478]
[1741027521933,1.436,582.08,581.67,0.29159478]
[1741027522134,1.436,582.08,581.47,0.29159478]
[1741027522330,1.436,582.08,581.48,0.29159478]
[1741027522535,1.436,582.08,581.49,0.29159478]
[1741027522735,1.436,582.08,581.5,0.29159478]
[1741027523032,1.436,582.08,581.51,0.29159478]
[1741027523233,1.436,582.08,581.52,0.29159478]
[1741027523433,1.436,582.08,581.53,0.29159478]
[1741027523637,1.436,582.08,581.46,1.26226161]
[1741027523638,1.436,582.08,581.54,0.29159478]
[1741027523839,1.436,582.08,580.89,1.51471394]
[1741027523840,1.436,582.08,581.77,1.26226161]
[1741027524138,1.436,582.08,581.78,0.291293]
[1741027524541,1.436,582.08,581.79,0.291293]
[1741027524743,1.436,582.08,581.8,0.291293]
[1741027524938,1.436,582.08,581.81,0.291293]
[1741027525337,1.436,582.08,581.82,0.291293]
[1741027525541,1.436,582.08,581.77,1.26226161]
[1741027525739,1.436,582.08,581.78,0.291257]
[1741027526440,1.436,582.08,581.79,0.291257]
[1741027526642,1.436,582.08,581.78,0.291257]
[1741027527438,1.06058667,582.08,582.01,1.26226161]
[1741027528435,1.06058667,582.08,582.02,0.29148354]
[1741027528935,1.06058667,582.08,582.03,0.29140731]
[1741027529241,1.06058667,582.08,582.01,1.26226161]
[1741027529440,1.06058667,582.08,582.02,0.29141298]
[1741027531039,1.06058667,582.08,582.01,1.26226161]
[1741027531339,1.06058667,582.08,581.19,1.26226161]
[1741027531540,1.06058667,582.08,581.21,0.3441097]
[1741027531736,1.06058667,582.08,581.22,0.29144568]
[1741027531935,1.06058667,582.08,581.24,0.34409194]
[1741027532140,1.06058667,582.08,581.25,0.29144568]
[1741027532341,1.06058667,582.08,581.27,0.34407418]
[1741027532642,1.06058667,582.08,581.28,0.29144568]
[1741027532844,1.06058667,582.08,581.29,0.63550802]
[1741027533142,1.06058667,582.08,581.3,0.6355021]
[1741027533345,1.06058667,582.08,581.31,0.29144568]
[1741027533644,1.06058667,582.08,581.32,0.29144568]
[1741027533843,1.06058667,582.08,581.33,0.29144568]
[1741027534141,1.06058667,582.08,581.34,0.29144568]
[1741027534438,1.06058667,582.08,581.35,0.29144568]
[1741027534640,1.06058667,582.08,581.36,0.29144568]
[1741027534836,1.06058667,582.08,581.37,0.29144568]
[1741027535040,1.06058667,582.08,581.38,0.29144568]
[1741027535239,1.06058667,582.08,581.39,0.29148934]
[1741027535540,1.06058667,582.08,581.4,0.29148934]
[1741027535836,1.206,582.15,581.41,0.29148934]
[1741027536039,1.206,582.15,581.42,0.29148934]
[1741027536341,1.206,582.15,581.43,0.29148934]
[1741027536542,1.206,582.15,581.44,0.29148934]
[1741027536842,1.206,582.15,581.45,0.29148934]
[1741027537039,1.206,582.15,581.46,0.29148934]
[1741027537236,1.206,582.15,581.32,0.29148934]
[1741027537440,1.206,582.15,581.33,0.29148934]
[1741027537642,1.206,582.15,581.32,0.29148934]
[1741027537941,1.206,582.15,581.59,1.26226161]
[1741027538139,1.206,582.15,581.6,0.29148934]
[1741027538441,1.206,582.15,581.61,0.29148934]
[1741027538643,1.206,582.15,581.62,0.29148934]
[1741027538838,1.206,582.15,581.63,0.29148934]
[1741027539043,1.206,582.15,581.64,0.29148934]
[1741027539343,1.206,582.15,581.65,0.29148934]
[1741027539547,1.206,582.15,581.82,1.26226161]
[1741027539844,1.206,582.15,581.83,0.29148934]
[1741027541845,1.206,582.15,581.84,0.63522644]
[1741027542041,1.206,582.15,581.85,0.29148934]
[1741027542248,1.206,582.15,581.86,0.29148934]
[1741027542547,1.206,582.15,582.02,1.26226161]
[1741027542746,1.206,582.15,582.03,0.29148934]
[1741027543249,1.206,582.15,582.02,1.26226161]
[1741027543450,1.206,582.15,582.03,0.29128138]
[1741027545255,1.206,582.15,582.04,0.29128138]
[1741027545549,1.206,582.15,582.05,0.29128138]
[1741027545754,1.206,582.15,582.0,1.26226161]
[1741027546654,1.206,582.15,582.01,0.29140883]
[1741027547656,1.206,582.15,582.02,0.29140883]
[1741027547852,1.206,582.15,582.03,0.29140883]
[1741027548053,1.206,582.15,581.85,0.29140883]
[1741027548254,1.206,582.15,581.84,0.3437371]
[1741027548456,1.206,582.15,581.85,0.29130037]
[1741027548656,1.206,582.15,581.86,0.29130037]
[1741027548850,1.206,582.15,581.87,0.29130037]
[1741027549054,1.206,582.15,581.88,0.29130037]
[1741027549251,1.206,582.15,582.09,1.26226161]
[1741027549457,0.83050479,582.15,582.1,0.29128784]
[1741027549859,1.232,582.31,582.1,0.29128784]
[1741027550854,1.232,582.31,582.07,0.29128784]
[1741027551058,1.232,582.31,582.08,0.29128784]
[1741027551258,1.232,582.31,582.09,0.29128784]
[1741027551459,1.232,582.31,582.1,0.29128784]
[1741027551756,1.232,582.31,582.07,0.29128784]
[1741027551961,1.232,582.31,582.08,0.29128784]
[1741027552157,1.232,582.31,582.07,0.29128784]
[1741027552354,1.232,582.31,582.08,0.29128784]
[1741027552655,1.232,582.31,582.09,0.29128784]
[1741027552854,1.232,582.31,582.07,0.29128784]
[1741027553054,1.232,582.31,582.08,0.29128784]
[1741027553562,1.232,582.31,582.09,0.29128784]
[1741027553757,1.232,582.31,582.07,0.29128784]
[1741027553959,1.232,582.31,582.22,1.51471394]
[1741027554161,1.232,582.31,582.23,0.29128784]
[1741027556661,1.232,582.31,582.22,1.51471394]
[1741027556867,1.232,582.31,582.27,1.27356642]
[1741027557760,1.232,582.31,582.28,0.29126968]
[1741027559061,1.232,582.31,582.27,1.27356642]
[1741027559669,1.232,582.31,582.2,1.27356642]
[1741027561272,1.232,582.31,582.21,0.29124566]
[1741027561467,1.232,582.31,582.22,0.29122685]
[1741027561670,1.232,582.31,582.2,1.27356642]
[1741027562374,1.232,582.31,582.21,0.29134182]
[1741027562567,1.232,582.31,582.24,1.27525012]
[1741027562765,1.232,582.31,582.25,0.29134182]
[1741027563369,1.232,582.31,582.26,0.29134182]
[1741027563569,1.232,582.31,582.24,1.27525012]
[1741027563768,1.232,582.31,582.27,0.29111347]
[1741027564171,1.232,582.31,582.24,1.27525012]
[1741027564575,1.232,582.31,582.28,0.29109076]
[1741027564772,1.232,582.31,582.29,0.29109076]
[1741027565073,1.232,582.31,582.3,0.29109076]
[1741027565273,1.232,582.31,582.25,0.29109076]
[1741027565469,1.232,582.31,582.26,0.29109076]
[1741027565671,1.232,582.31,582.25,0.29109076]
[1741027565872,1.232,582.31,582.26,0.29109076]
[1741027566074,1.232,582.31,582.25,0.29109076]
[1741027566275,1.232,582.31,582.26,0.29109076]
[1741027566574,1.232,582.31,582.27,0.29109076]
[1741027566768,1.232,582.31,582.25,0.29109076]
[1741027566975,1.232,582.31,582.26,0.29109076]
[1741027567173,1.232,582.31,582.25,0.29109076]
[1741027567474,1.232,582.31,582.26,0.29109076]
[1741027567673,1.232,582.31,582.27,0.34348326]
[1741027567867,1.232,582.31,582.28,0.29109076]
[1741027568473,1.232,582.31,582.29,0.34347146]